Cogmind - Beta 15 @@@ ROGUE MODE // 2025.08.11 @ 11:48:13 Player: Luna Result: Self-destructed Performance ------------- Evolutions (2) 1000 Regions Visited (6) 1200 Robots Destroyed (100) 500 Value Destroyed (2356) 2356 Prototype IDs (0) 0 Alien Tech Used (0) 0 Bonus (55) 55 TOTAL SCORE: 5111 Bonus ------- High Alert Combat Kills 55 Cogmind --------- Core Integrity 418/550 Matter 24/300 Energy 140/140 System Corruption 0% Temperature Cool (0) Movement Treading (160) Location -8/Materials Parts ------- > --- POWER (1) -------- Light Deuterium Engine > --- PROPULSION (3) --- Light Treads Light Treads > --- UTILITY (4) ------ Medium Storage Unit Utility Shielding Improved Light Armor Plating > --- WEAPON (3) ------- Heavy Assault Rifle Gauss Rifle > --- INVENTORY (10) --- Light Treads Light Treads Light Treads Light Treads Heat Sink Medium Storage Unit Propulsion Shielding Improved Light Armor Plating Heavy Assault Rifle Rocket Launcher Peak State ------------ > --- POWER ------------ Light Deuterium Engine > --- PROPULSION ------- Light Treads Light Treads Light Treads > --- UTILITY ---------- Medium Storage Unit Utility Shielding Improved Light Armor Plating Improved Light Armor Plating > --- WEAPON ----------- Heavy Assault Rifle Gauss Rifle Missile Launcher > --- INVENTORY -------- Light Treads Light Treads Light Treads Heat Sink Medium Storage Unit Propulsion Shielding Improved Light Armor Plating Heavy Assault Rifle Rocket Launcher [Rating: 24] Favorites ----------- Power Light Deuterium Engine Engine Light Deuterium Engine Propulsion Light Treads Treads Light Treads Utility Medium Storage Unit Device Seismic Detector Storage Medium Storage Unit Processor Targeting Computer Protection Utility Shielding Weapon Improved Light Cannon Energy Gun Beam Rifle Ballistic Gun Assault Rifle Ballistic Cannon Improved Light Cannon Launcher Rocket Launcher Build | -11 -10 -9 -9 -9 -8 -8 ------- Run | Yrd Mat Mat Min Exi Min Mat Slots Evolved 4 | . . 2 . . . 2 Power . | . . . . . . . Propulsion 1 | . . . . . . 1 Utility 2 | . . 1 . . . 1 Weapon 1 | . . 1 . . . . Parts Attached 47 | 7 4 23 . . 3 10 Power 6 | 1 1 3 . . 1 . Engine 6 | 1 1 3 . . 1 . Core . | . . . . . . . Reactor . | . . . . . . . Propulsion 16 | 2 2 7 . . . 5 Treads 16 | 2 2 7 . . . 5 Leg . | . . . . . . . Wheel . | . . . . . . . Hover . | . . . . . . . Flight . | . . . . . . . Utility 12 | 2 1 7 . . . 2 Device 1 | 1 . . . . . . Storage 4 | 1 1 2 . . . . Processor 1 | . . 1 . . . . Hackware . | . . . . . . . Protection 6 | . . 4 . . . 2 Artifact . | . . . . . . . Weapon 13 | 2 . 6 . . 2 3 Energy Gun 2 | . . 1 . . . 1 Energy Cannon . | . . . . . . . Ballistic Gun 6 | 2 . 2 . . 1 1 Ballistic Cannon 2 | . . 2 . . . . Launcher 3 | . . 1 . . 1 1 Special Weapon . | . . . . . . . Impact Weapon . | . . . . . . . Slashing Weapon . | . . . . . . . Piercing Weapon . | . . . . . . . Special Melee Weapon . | . . . . . . . Unidentified Prototypes . | . . . . . . . Parts Lost 14 | . . 8 . . 2 4 Power 2 | . . 1 . . 1 . Propulsion 3 | . . 2 . . . 1 Utility 3 | . . 2 . . . 1 Weapon 6 | . . 3 . . 1 2 Highest Loss Streak 8 | . . 8 . . 2 3 To Critical Strikes . | . . . . . . . Average Backups 7 | 1 4 7 10 10 9 7 Power . | . 1 1 1 1 . . Propulsion 2 | . 1 1 3 3 3 2 Utility 3 | . 2 3 5 5 5 4 Weapon . | . . 1 1 1 . . Tool/Special . | . . . . . . . Unused Backups 9 | . . 6 . . . 3 Power 1 | . . 1 . . . . Propulsion 1 | . . 1 . . . . Utility 4 | . . 2 . . . 2 Weapon 3 | . . 2 . . . 1 Tool/Special . | . . . . . . . Average Slot Usage (%) 98 | . 100 96 100 100 99 95 Engine 11 | . 14 10 11 11 10 9 Treads 23 | . 28 21 22 22 22 26 Device 3 | . 14 4 . . . . Storage 11 | . 14 11 11 11 11 9 Processor 1 | . . 4 . . . . Protection 15 | . . 11 22 22 22 26 Ballistic Gun 9 | . 28 9 . . 1 12 Ballistic Cannon 12 | . . 13 22 22 20 2 Launcher 6 | . . 5 11 11 9 8 Peak Build Rating 24 | 7 7 17 17 17 19 24 Average Rating 14 | 5 7 13 17 17 17 21 On Entrance 12 | . 7 7 17 17 17 19 Naked Turns . | . . . . . . . Heaviest Build 35 | 13 20 35 31 31 31 35 Greatest Support 60 | 40 40 43 40 40 40 60 Greatest Overweight (x) 4 | . . 4 . . . . Average Overweight (x) . | . . . . . . . Largest Inventory Capacity 10 | 8 10 10 10 10 10 10 Average Capacity 9 | 7 8 10 10 10 10 10 Most Carried 10 | 2 7 10 10 10 10 10 Average Carried 7 | 1 4 7 10 10 9 7 Final Capacity 10 | 8 10 10 10 10 10 10 Final Carried 10 | 2 7 10 10 10 8 10 Class Distribution -------------------- 54% | Tank 24% | Mutant 9% | Scavenger-Gunner 5% | Scavenger-Tank 5% | Scavenger-Mutant Dominant Class ---------------- Mutant | -10/Materials Tank | -9/Materials Tank | -9/Mines Tank | -9/Exiles Tank | -8/Mines Scavenger-Tank | -8/Materials Resources | -11 -10 -9 -9 -9 -8 -8 ----------- Run | Yrd Mat Mat Min Exi Min Mat Matter Collected 1794 | 331 246 518 . . 276 423 Remotely . | . . . . . . . Salvage Created 2680 | 252 433 1090 37 . 207 661 Parts 198 | 28 37 72 8 . 14 39 Haulers Intercepted 4 | . 1 2 . . . 1 Recyclers Shooed 2 | . 2 . . . . . Parts Field Recycled . | . . . . . . . Retrieved Matter . | . . . . . . . Parts Self-Destructed . | . . . . . . . Prevented . | . . . . . . . Kills | -11 -10 -9 -9 -9 -8 -8 ------- Run | Yrd Mat Mat Min Exi Min Mat Combat Hostiles Destroyed 64 | . 13 23 6 . 4 18 Guns 31 | . 13 12 . . 1 5 Cannons 15 | . . 9 2 . 3 1 AOE 17 | . . 2 4 . . 11 Classes Destroyed 13 | 3 3 3 1 . 2 1 Worker 10 | 2 . 5 . . 2 1 Builder 9 | . . 5 1 . 1 2 Tunneler 10 | 6 . . . . 2 2 Hauler 4 | . 1 2 . . . 1 Recycler 1 | 1 . . . . . . Operator 2 | . . . . . . 2 Watcher 3 | . . 2 . . . 1 Swarmer 15 | . 6 3 3 . . 3 Grunt 35 | . 7 14 . . 2 12 Brawler 2 | . . . . . 1 1 Sentry 8 | . . 6 . . . 2 Hunter 1 | . . . . . 1 . Assembled 3 | . . . 3 . . . Best Kill Streak 10 | 3 4 7 4 . 3 10 Combat Bots Only 8 | . 4 6 3 . 3 8 Max Kills in Single Turn 4 | 1 1 2 3 . 1 4 Gunslinging . | . . . . . . . Exploded 2 | . . 1 1 . . 2 Melee . | . . . . . . . Uniques/NPCs Destroyed . | . . . . . . . Combat | -11 -10 -9 -9 -9 -8 -8 -------- Run | Yrd Mat Mat Min Exi Min Mat Hostile Shots Fired 353 | . 57 135 11 . 31 119 Missed 95 | . 16 30 2 . 10 37 Hits 258 | . 41 105 9 . 21 82 Melee 1 | . . . . . 1 . Projectile 257 | . 41 105 9 . 20 82 Critical Strikes 11 | . 1 4 . . 3 3 Actively Blocked 1 | . . . . . . 1 Damage Taken 3788 | . 428 1347 109 . 606 1298 Core 570 | . 95 208 6 . 129 132 Absorbed by Shields . | . . . . . . . Redirected to Shielding 19 | . . 3 . . . 16 Core Remaining (%) 58 | 100 62 . . . 14 . Volleys Fired 152 | 14 36 50 7 . 16 29 Largest 3 | 2 2 3 3 . 3 3 Hottest 99 | 40 40 99 99 . 99 94 Shots Fired 371 | 28 72 137 21 . 39 74 Gun 240 | 28 72 86 . . 10 44 Cannon 85 | . . 40 14 . 27 4 Launcher 46 | . . 11 7 . 2 26 Special . | . . . . . . . Kinetic 298 | 28 72 99 14 . 37 48 Thermal 27 | . . 27 . . . . Explosive 46 | . . 11 7 . 2 26 Electromagnetic . | . . . . . . . Robot Hit Streak 16 | 7 10 16 2 . 4 10 Robot Miss Streak 8 | 1 4 4 8 . 2 3 Penetration Max 1 | . . . . . . 1 Secondary Targets 8 | . 3 5 . . . . Max Gunslinging Chain 1 | . 1 1 . . . . Shots Hit Robots 217 | 19 46 78 6 . 22 46 Core Hits 150 | 10 24 54 9 . 12 41 Critical Kills 1 | . 1 . . . . . Critical Parts Destroyed 1 | . . . . . . 1 Critical Strikes 7 | . 1 4 . . 1 1 Burn 3 | . . 3 . . . . Destroy 2 | . 1 . . . . 1 Blast 2 | . . 1 . . 1 . Melee Attacks . | . . . . . . . Impact . | . . . . . . . Slashing . | . . . . . . . Piercing . | . . . . . . . Sneak Attacks . | . . . . . . . Combat Hostiles . | . . . . . . . Follow-up Attacks . | . . . . . . . Damage Inflicted 5938 | 241 588 1777 570 . 523 2239 Guns 2313 | 241 581 773 . . 114 604 Cannons 869 | . . 408 129 . 310 22 Explosions 2667 | . . 578 441 . 52 1596 Melee . | . . . . . . . Ramming 89 | . 7 18 . . 47 17 Kinetic 2905 | 241 581 904 129 . 424 626 Thermal 551 | . . 277 . . . 274 Explosive 2393 | . . 578 441 . 52 1322 Electromagnetic . | . . . . . . . Impact . | . . . . . . . Slashing . | . . . . . . . Piercing . | . . . . . . . Highest Corruption 1 | . . . . . 1 . Average Corruption 1 | . . . . . 1 . Corruption Purged . | . . . . . . . Corruption Blocked . | . . . . . . . Effects 1 | . . . . . 1 . Data Loss (major) 1 | . . . . . 1 . Overload Shots . | . . . . . . . Overflow Damage 170 | . . 35 51 . . 84 Projectiles . | . . . . . . . Explosions 170 | . . 35 51 . . 84 Melee . | . . . . . . . Knockbacks 8 | . . 3 2 . 3 . Impact . | . . . . . . . Kinetic 7 | . . 2 2 . 3 . Secondary 1 | . . 1 . . . . Self-Inflicted Damage 333 | . . 125 21 . . 187 Shots 13 | . . 5 1 . . 7 Rammed 19 | . 3 1 . . 8 7 Targets Rammed 21 | . 3 1 . . 10 7 Kicked . | . . . . . . . Crushed 2 | . . . . . 2 . Highest Temperature 445 | . 28 445 117 . 142 159 Average Temperature 86 | . 12 122 48 . 59 48 Received Heat Transfer 1503 | . 207 621 . . 180 495 Effects 1 | . . 1 . . . . Short Circuit 1 | . . 1 . . . . Siege Activations . | . . . . . . . Martial Activations . | . . . . . . . Shielding Activations . | . . . . . . . Robots Disrupted . | . . . . . . . Combat Hostiles . | . . . . . . . Robots Corrupted . | . . . . . . . Combat Hostiles . | . . . . . . . Parts Fried . | . . . . . . . Impact Corruptions . | . . . . . . . Robots Melted . | . . . . . . . Combat Hostiles . | . . . . . . . Parts Melted 1 | . . 1 . . . . Heat Transferred 1125 | . . 925 . . . 200 Parts Sabotaged . | . . . . . . . Parts Stolen . | . . . . . . . Parts Stripped . | . . . . . . . Power Chain Reactions . | . . . . . . . Alert | -11 -10 -9 -9 -9 -8 -8 ------- Run | Yrd Mat Mat Min Exi Min Mat Maximum Alert Level 2 | . . 1 . . . 2 Low Security (%) 86 | 100 100 93 100 . 100 24 Level 1 10 | . . 6 . . . 57 Level 2 2 | . . . . . . 17 Level 3 . | . . . . . . . Level 4 . | . . . . . . . Level 5 . | . . . . . . . High Security . | . . . . . . . Max Security . | . . . . . . . Peak Influence 556 | 10 140 260 145 . 70 556 Initial 29 | . . 29 27 . . 17 Average 89 | 1 62 87 106 . 10 243 Influence Increases 2312 | 45 352 812 165 . 143 795 Destroy 0b10 Robot/C 1220 | . 260 460 60 . 80 360 Destroy 0b10 Robot/NC 195 | 45 5 70 5 . 25 45 Destroy Leader 284 | . 52 118 10 . 20 84 Successful Hack 9 | . 5 4 . . . . Disable Machine 120 | . 15 15 30 . . 60 Destroy Structure 364 | . . 115 45 . 18 186 Partial Spotted 15 | . . 15 . . . . Lose Combat Pursuer 105 | . 15 15 15 . . 60 Influence Decreases 1779 | 45 282 812 163 72 97 308 Entered New Map 185 | . . 41 43 72 . 29 Time Decay 1206 | 45 282 443 120 . 77 239 Lost Part 140 | . . 80 . . 20 40 Purge Threat 248 | . . 248 . . . . Squads Dispatched 10 | . 3 3 . . . 4 Investigation 7 | . 2 3 . . . 2 Extermination . | . . . . . . . Reinforcement 3 | . 1 . . . . 2 Assault . | . . . . . . . Garrison . | . . . . . . . Intercept . | . . . . . . . Searches Triggered . | . . . . . . . Construction Impeded . | . . . . . . . Haulers Reinforced . | . . . . . . . Active Scanning Responses . | . . . . . . . Cargo Convoy Interrupts . | . . . . . . . Stealth | -11 -10 -9 -9 -9 -8 -8 --------- Run | Yrd Mat Mat Min Exi Min Mat Distress Signals 4 | . 1 1 1 . . 1 Communications Jammed . | . . . . . . . Distress Signals . | . . . . . . . Times Spotted 91 | . 16 34 10 . 4 27 Peak Tracking Total 11 | . 6 6 11 . 3 5 Tactical Retreats 4 | . 1 1 1 . . 1 Traps | -11 -10 -9 -9 -9 -8 -8 ------- Run | Yrd Mat Mat Min Exi Min Mat Traps Triggered 4 | . 1 2 . . . 1 Indirectly . | . . . . . . . Trap Hack Attempts . | . . . . . . . Triggered . | . . . . . . . Disarmed . | . . . . . . . Reprogrammed . | . . . . . . . Reused . | . . . . . . . Traps Extracted . | . . . . . . . Installed . | . . . . . . . Triggered . | . . . . . . . Machines | -11 -10 -9 -9 -9 -8 -8 ---------- Run | Yrd Mat Mat Min Exi Min Mat Machines Disabled 8 | . 1 1 2 . . 4 Max in Single Turn 1 | . 1 1 1 . . 1 Machines Repaired . | . . . . . . . Machines Dismantled . | . . . . . . . Machines Sabotaged . | . . . . . . . Overloaded Fab Kills . | . . . . . . . Hacking | -11 -10 -9 -9 -9 -8 -8 --------- Run | Yrd Mat Mat Min Exi Min Mat Machines Accessed 10 | . 2 5 1 1 . 1 Terminals 8 | . 1 5 1 . . 1 Fabricators . | . . . . . . . Repair Stations . | . . . . . . . Recycling Units 1 | . 1 . . . . . Scanalyzers . | . . . . . . . Garrison Access . | . . . . . . . Total Hacks 55 | . 6 19 3 23 . 4 Successful 37 | . 4 8 2 23 . . Failed 18 | . 2 11 1 . . 4 Catastrophic 2 | . . 2 . . . . Database Lockouts . | . . . . . . . Manual 1 | . . . . 1 . . Terminals 28 | . 2 19 3 . . 4 Fabricators . | . . . . . . . Repair Stations . | . . . . . . . Recycling Units 4 | . 4 . . . . . Scanalyzers . | . . . . . . . Garrison Access . | . . . . . . . Terminal Hacks 35 | . 2 8 2 23 . . Record 24 | . 1 . . 23 . . Branch Access Points 1 | . . 1 . . . . Alert Level 2 | . . 2 . . . . Unreport Threat 2 | . . 2 . . . . Dispatch Records 2 | . . 1 1 . . . Surveillance Status 1 | . . 1 . . . . Hauler Manifests 1 | . 1 . . . . . Zone Layout 2 | . . 1 1 . . . Fabricator Hacks . | . . . . . . . Repair Station Hacks . | . . . . . . . Recycling Unit Hacks 2 | . 2 . . . . . Retrieve Matter 1 | . 1 . . . . . Retrieve Components 1 | . 1 . . . . . Scanalyzer . | . . . . . . . Garrison Access Hacks . | . . . . . . . Unauthorized Hacks . | . . . . . . . Terminals . | . . . . . . . Fabricators . | . . . . . . . Repair Stations . | . . . . . . . Recycling Units . | . . . . . . . Scanalyzers . | . . . . . . . Garrison Access . | . . . . . . . Data Cores Recovered . | . . . . . . . Used . | . . . . . . . Hacking Detections 8 | . 1 5 1 . . 1 Full Trace Events 4 | . 1 1 1 . . 1 Feedback Events . | . . . . . . . Feedback Blocked . | . . . . . . . Robot Schematics Acquired . | . . . . . . . Robots Built . | . . . . . . . Authchips . | . . . . . . . Time . | . . . . . . . Total Robot Build Rating . | . . . . . . . Part Schematics Acquired . | . . . . . . . Parts Built . | . . . . . . . Authchips . | . . . . . . . Time . | . . . . . . . Total Part Build Rating . | . . . . . . . Parts Repaired . | . . . . . . . Time . | . . . . . . . Parts Recycled . | . . . . . . . Recycled Matter . | . . . . . . . Retrieved Matter 88 | . 88 . . . . . Retrieved Components 10 | . 10 . . . . . Parts Scanalyzed . | . . . . . . . Part Schematics Acquired . | . . . . . . . Parts Damaged . | . . . . . . . Bothacking | -11 -10 -9 -9 -9 -8 -8 ------------ Run | Yrd Mat Mat Min Exi Min Mat Used RIF Installer . | . . . . . . . Robots Hacked . | . . . . . . . Non-combat . | . . . . . . . Combat . | . . . . . . . Robot Hacks Applied . | . . . . . . . Relay Couplers Released . | . . . . . . . Fabnet Peak Effective % . | . . . . . . . Robots Rewired . | . . . . . . . Allies Hacked . | . . . . . . . Hacks Repelled . | . . . . . . . Allies | -11 -10 -9 -9 -9 -8 -8 -------- Run | Yrd Mat Mat Min Exi Min Mat Total Allies . | . . . . . . . Largest Group . | . . . . . . . Highest-Rated Group . | . . . . . . . Highest-Rated Ally . | . . . . . . . Total Orders . | . . . . . . . Ally Attacks . | . . . . . . . Total Damage . | . . . . . . . Kills . | . . . . . . . Allies Corrupted . | . . . . . . . Allies Melted . | . . . . . . . Intel | -11 -10 -9 -9 -9 -8 -8 ------- Run | Yrd Mat Mat Min Exi Min Mat Active Infowar (turns) 1332 | 3 768 561 . . . . Seismic 1332 | 3 768 561 . . . . Robot Analysis Total . | . . . . . . . Derelict Logs Recovered . | . . . . . . . Drone Launches . | . . . . . . . Drone Recoveries . | . . . . . . . Exploration | -11 -10 -9 -9 -9 -8 -8 ------------- Run | Yrd Mat Mat Min Exi Min Mat Turns Passed 4583 | 224 768 1384 249 769 624 565 Spaces Moved 2374 | 109 342 710 130 474 333 276 Core 4 | 3 . 1 . . . . Treads 2370 | 106 342 709 130 474 333 276 Legs . | . . . . . . . Wheels . | . . . . . . . Hover . | . . . . . . . Flight . | . . . . . . . Fastest Speed 50 | 50 160 160 160 160 160 160 Average Speed 159 | 156 160 160 160 160 160 160 Slowest Speed 250 | 160 160 250 160 160 160 160 Overloaded Moves . | . . . . . . . Propulsion Burnouts . | . . . . . . . Robots Hopped . | . . . . . . . Potential Cave-ins . | . . . . . . . Cave-ins Triggered 1 | . . . . . 1 . Exploration Rate (%) 38 | 5 32 51 24 78 62 20 Regions Visited 6 Branch Regions 3 Pre-discovered Areas 1 | . . . . 1 . . Known Exits Taken 1 | . . 1 . . . . Unknown Exits Taken 5 | 1 1 . 1 1 1 . Scrap Searched 1 | . . . . . 1 . Spaces Dug . | . . . . . . . Terrain Destroyed 440 | . . 109 69 . 28 234 Melee . | . . . . . . . Projectile 7 | . . 1 2 . 2 2 AOE 433 | . . 108 67 . 26 232 Terrain Rammed . | . . . . . . . Walls Destroyed . | . . . . . . . Machines Disabled . | . . . . . . . Actions | -11 -10 -9 -9 -9 -8 -8 --------- Run | Yrd Mat Mat Min Exi Min Mat Total 2823 | 131 489 852 155 485 384 327 Wait 162 | . 96 22 19 . 23 2 Move 2368 | 108 341 709 129 473 332 276 Hop . | . . . . . . . Pick Up 34 | 2 6 24 . . . 2 Fast Attach 10 | 7 . 2 . . . 1 Attach 12 | . . 8 . . 2 2 Detach . | . . . . . . . Swap 26 | . 4 14 . . 1 7 Drop 26 | . 3 22 . . . 1 Fire 152 | 14 36 50 7 . 16 29 Melee . | . . . . . . . Ram . | . . . . . . . Kick . | . . . . . . . Crush 21 | . 3 1 . . 10 7 Escape Stasis . | . . . . . . . Rewire 12 | . . . . 12 . . Trap . | . . . . . . . Miscellaneous . | . . . . . . . Route ------- -11/Scrapyard -10/Materials -9/Materials (discovered 2 exits: *Mat / *Min) -9/Mines -9/Exiles -8/Mines -8/Materials History --------- Turn | Location | Event 8 | -11/Scrapyard | Discovered new exit (range 15) 225 | -11/Scrapyard | Entered Materials 300 | -10/Materials | Build established: Mutant 922 | -10/Materials | Discovered new exit (range 10) 993 | -10/Materials | Entered another Materials area 993 | -9/Materials | Evolved 2 slots: Utility x1, Weapon x1 1384 | -9/Materials | Build established: Scavenger-Gunner 1585 | -9/Materials | Lost 8 parts (1p2n2u3w) 1681 | -9/Materials | Discovered new exit (range 15) 1766 | -9/Materials | Core integrity fell below 50% 1838 | -9/Materials | Identified exit to Mines 1950 | -9/Materials | Build established: Tank 2377 | -9/Materials | Entered Mines 2488 | -9/Mines | Assembled infested the area 2587 | -9/Mines | Met 8R-AWN 2619 | -9/Mines | Discovered new exit (range 5) 2626 | -9/Mines | Entered Exiles 2665 | -9/Exiles | Welcomed by 8R-AWN 2697 | -9/Exiles | Met EX-HEX 2816 | -9/Exiles | Met EX-DEC 2903 | -9/Exiles | Visited The Gauntlet 3138 | -9/Exiles | Learned location of Zion (-6) 3376 | -9/Exiles | Discovered new exit (range 10) 3395 | -9/Exiles | Entered Mines 3949 | -8/Mines | Crushed by falling debris 3956 | -8/Mines | Core integrity fell below 20% 4011 | -8/Mines | Discovered new exit (range 5) 4019 | -8/Mines | Entered Materials 4019 | -8/Materials | Evolved 2 slots: Propulsion x1, Utility x1 4536 | -8/Materials | Destroyed 8 combat bots 4584 | -8/Materials | Self-destructed Last Messages --------------- 04565_ Penetrated by Slug. 04568_ K-01 Serf collects debris. 04569_ The unstable cave ceiling collapses. 04569_ G-47 Trooper crushed by falling debris. 04569_ G-47 Trooper destroyed. 04569_ 17 Matter crushed. 04570_ Slammed into G-47 Trooper. 04571_ K-01 Serf collects debris. 04571_ Slug penetrates G-47 Trooper. 04574_ The unstable cave ceiling collapses. 04574_ Lgt. Treads destroyed. 04574_ K-01 Serf collects debris. 04574_ Slammed into G-47 Trooper. 04575_ U-05 Engineer lays Concrete. 04576_ U-05 Engineer builds a Wall. 04576_ Slammed into G-47 Trooper. 04577_ K-01 Serf collects debris. 04578_ Slammed into G-47 Trooper. 04580_ K-01 Serf collects debris. 04584_ Penetrated by Slug. Map ----- +----------------------------------------------------+ | | | | | | | | | | | | | | | | | | | | | | | | | | | | | ?????????????#??????### # #??????????????????????? | | ??########??? ????### ###????????????????????? | | ?? #??? ????# #####????????????????? | | ??? # ? ?????# # ########?????????? | | ??? #? ?????# * # # ##????????? | | ???? ####+###### ! +????????? | | ???? ## # = #??????????? | | ???? ## ###### #??????????? | | ##### # #??????????? | | "T""" # # ############ ##??????????? | | # # # ## #??????????? | | [ # # + @ # #? """ =#??????????? | | # # # g ## #??""" #??????????? | | #+## # # # ##???"" #??????????? | | = [ % # # ## ##??? ?????????????? | | #+ # ## % # #?????????????????? | | = hk = # #?????????????????? | | # # # #?????????????????? | | # # " " ; #?????????????????? | | # "R" # #?????????????????? | | # """ # ###########???????? | | ! = ######### ## #???????? | | ##### " "######"########## # #???????? | | * # #???????? | | " + #???????? | | # #???????? | | ##+######+#############+### # #???????? | | #??? ?????????? ?####### #???????? | | " #??? ????????? ""???????# #???????? | | " #?? #??????? """??????# #???????# | | " !#?? "Y" #??????? """??????##+######### | | #?? """ #?????? #??????# | | ! #?# #?????? #??????# | | #####?#+######?????#/######??????#### | | ???????????????????# ???????????????? """ | | ???????????????????# ????????????????? """ ## | +----------------------------------------------------+ Best States ------------- Heat Dissipation 31 Energy Generation 14 Energy Capacity 265 Matter Stores 300 Matter Capacity 300 Sight Range 16 Terrain Scan Density 10 Armor Coverage 300 Utility Shielding 33 Evasion (%) 40 Targeting Accuracy 5 Recoil Reduction 3 Item Schematics ----------------- None Robot Schematics ------------------ None Fabricated ------------ Nothing Repaired ---------- Nothing Alien Tech Used ----------------- None Achievements -------------- Slippery One Challenges ------------ None Game ------ Seed TransmissionDecoyInsulator Manual? 0 Play Time 00:29:12 Cumulative 19.9 hours Start 2025.08.11 @ 11:15:11 End 2025.08.11 @ 11:48:13 Sessions 1 Manual Loads 0 Difficulty Rogue Special Mode None Game No. 43 Rogue 43 Adventurer 0 Explorer 0 Win Type - Total 0 Types 0/0/0/0/0/0/0/0/0/0 Lore% 10 Gallery% 13 Achievement% 17 Wizard Run 0 Options --------- Layout 2 ASCII 0 Keyboard 1 Movement Vi Keybinds 0 Fullscreen 1 Font 24/Tamsyn Map View 50x44 Zoom Use 0% Tactical HUD 1 Map Filters NONE Filters NONE Steam 1 RUN: 954ffe78-2d4a-405d-abb7-27dbf7de7183